fUSD/lending_fUSD_20260519
["ID","MTS","AMOUNT","RATE_DAILY","PERIOD"]
[422631342,1779178246000,-327.81838487,0.00015,2]
[422631344,1779178246000,-820.58546881,0.00015,2]
[422631341,1779178246000,-379.348091,0.00014925,2]
[422631340,1779178246000,-2304.0,0.00014925,2]
[422631343,1779178246000,-1668.73,0.00015,2]
[422631355,1779178301000,-424.88089505,0.00014413,2]
[422631357,1779178449000,244.41442253,0.00029849,120]
[422631359,1779178549000,-274.310326,0.0001424,2]
[422631360,1779178677000,355.25,0.00030137,120]
[422631361,1779178800000,-250.0,0.00014,2]
[422631363,1779178987000,-500.0,0.00013967,2]
[422631365,1779179147000,254.74537735,0.00027833,120]
[422631366,1779179175000,-356.32,0.00013894,2]
[422631367,1779179248000,188.77437179,0.00027833,120]
[422631368,1779179343000,1000.0,0.00030136,120]
[422631369,1779179362000,-166.84,0.00013699,2]
[422631372,1779179431000,-150.0,0.00014039,2]
[422631370,1779179431000,-156.65,0.0001368,2]
[422631371,1779179431000,-214.36,0.00013797,2]
[422631373,1779179431000,-150.0,0.00014054,2]
[422631375,1779179431000,-215.15951567,0.00014096,2]
[422631374,1779179431000,-166.84,0.0001406,2]
[422631376,1779179431000,-431.0,0.00014211,2]
[422631377,1779179431000,-300.0,0.00014262,2]
[422631378,1779179431000,-773.01021907,0.00014262,2]
[422631408,1779179432000,-280.04878884,0.00014263,2]
[422631406,1779179432000,-150.0,0.00014262,2]
[422631413,1779179432000,-67711.05961115,0.00014263,2]
[422631415,1779179432000,-301.45723099,0.00014263,2]
[422631404,1779179432000,-426.98978093,0.00014262,2]
[422631410,1779179432000,-219.95121116,0.00014263,2]
[422631418,1779179437000,-210.54390344,0.00014162,2]
[422631419,1779179437000,-1590.14841462,0.00014263,2]
[422631420,1779179437000,-10391.57037895,0.00014263,2]
[422631425,1779179438000,-1316.39673085,0.00014263,2]
[422631424,1779179438000,-2550.36125892,0.00014263,2]
[422631423,1779179438000,-1170.75638054,0.00014263,2]
[422631421,1779179438000,-713.71647197,0.00014263,2]
[422631422,1779179438000,-548.14564951,0.00014263,2]
[422631426,1779179439000,-2874.02810723,0.00014212,2]
[422631429,1779179440000,-500.0,0.00014262,2]
[422631427,1779179440000,-595.85768052,0.00014212,2]
[422631430,1779179440000,-500.0,0.00014262,2]
[422631428,1779179440000,-1512.19044581,0.00014212,2]
[422631432,1779179440000,-1418.55174596,0.00014263,2]
[422631431,1779179440000,-39217.93042319,0.00014263,2]
[422631433,1779179440000,-500.0,0.00014262,2]
[422631435,1779179440000,-8009.66189395,0.00014263,2]
[422631434,1779179440000,-500.0,0.00014262,2]
[422631436,1779179440000,-20512.87600002,0.00014263,2]
[422631437,1779179440000,-5155.31062132,0.00014263,2]
[422631438,1779179440000,-380.30947352,0.00014262,2]
[422631464,1779179443000,-443.05589306,0.00014263,2]
[422631462,1779179443000,-119.69052648,0.00014262,2]
[422631461,1779179443000,-210.54390342,0.00014187,2]
[422631463,1779179443000,-179.38739407,0.00014262,2]
[422631465,1779179443000,-968.38065445,0.00014263,2]
[422631466,1779179443000,-788.58776832,0.00014263,2]
[422631468,1779179443000,-5697.99795174,0.00014263,2]
[422631467,1779179443000,-290.0,0.00014263,2]
[422631469,1779179443000,-11624.31605211,0.00014263,2]
[422631470,1779179443000,-4495.81538631,0.00014263,2]
[422631471,1779179443000,-598.00215451,0.00014263,2]
[422631558,1779179445000,-338678.92181238,0.00014263,2]
[422631560,1779179445000,-1000.0,0.00014312,2]
[422631559,1779179445000,-1200.0,0.00014312,2]
[422631561,1779179445000,-2714.3025,0.00014313,2]
[422631562,1779179445000,-8766.38159465,0.00014321,2]
[422631557,1779179445000,-3110.30451518,0.00014263,2]
[422631564,1779179445000,-150.0,0.00014352,2]
[422631567,1779179445000,-1000.0,0.00014412,2]
[422631568,1779179445000,-500.0,0.00014413,2]
[422631566,1779179445000,-213.60133914,0.00014383,2]
[422631565,1779179445000,-4429.9962,0.00014364,2]
[422631563,1779179445000,-5302.46530252,0.00014321,2]
[422631590,1779179446000,-339.0,0.00014975,2]
[422631589,1779179446000,-478.84660254,0.000149,2]
[422631587,1779179446000,-177.43,0.00014693,2]
[422631586,1779179446000,-200.0,0.00014555,2]
[422631585,1779179446000,-500.0,0.00014463,2]
[422631584,1779179446000,-500.0,0.00014463,2]
[422631583,1779179446000,-500.0,0.00014463,2]
[422631581,1779179446000,-500.0,0.00014463,2]
[422631578,1779179446000,-500.0,0.00014463,2]
[422631579,1779179446000,-500.0,0.00014463,2]
[422631576,1779179446000,-500.0,0.00014463,2]
[422631580,1779179446000,-500.0,0.00014463,2]
[422631577,1779179446000,-500.0,0.00014463,2]
[422631572,1779179446000,-251.89775454,0.00014413,2]
[422631569,1779179446000,-500.0,0.00014413,2]
[422631574,1779179446000,-500.0,0.00014413,2]
[422631570,1779179446000,-197.28721307,0.00014413,2]
[422631573,1779179446000,-500.0,0.00014413,2]
[422631571,1779179446000,-500.0,0.00014413,2]
[422631575,1779179446000,-166.84,0.00014421,2]
[422631593,1779179446000,-209.84462665,0.00014998,2]
[422631582,1779179446000,-387.48948996,0.00014463,2]
[422631591,1779179446000,-242.59630087,0.0001499,2]
[422631603,1779179446000,-500.0,0.00014999,2]
[422631597,1779179446000,-500.0,0.00014998,2]
[422631592,1779179446000,-228.31784894,0.00014998,2]
[422631612,1779179446000,-3267.53507715,0.00015,2]
[422631614,1779179446000,-4448.53468889,0.00015,2]
[422631613,1779179446000,-155263.73,0.00015,2]
[422631611,1779179446000,-632.29006745,0.00015,2]
[422631601,1779179446000,-1034.9742324,0.00014999,2]
[422631608,1779179446000,-327.49861308,0.00015,2]
[422631605,1779179446000,-500.0,0.00014999,2]
[422631616,1779179446000,-26415.12231945,0.00015,2]
[422631604,1779179446000,-500.0,0.00014999,2]
[422631599,1779179446000,-500.0,0.00014998,2]
[422631615,1779179446000,-261.29843481,0.00015,2]
[422631609,1779179446000,-3981.156377,0.00015,2]
[422631607,1779179446000,-508530.47971449,0.00015,2]
[422631600,1779179446000,-554.06567151,0.00014999,2]
[422631606,1779179446000,-253826.6832233,0.00014999,2]
[422631602,1779179446000,-500.0,0.00014999,2]
[422631596,1779179446000,-490.551451,0.00014998,2]
[422631595,1779179446000,-500.0,0.00014998,2]
[422631588,1779179446000,-729.70143472,0.000149,2]
[422631594,1779179446000,-500.0,0.00014998,2]
[422631598,1779179446000,-388.07184927,0.00014998,2]
[422631610,1779179446000,-72590.10745951,0.00015,2]
[422631622,1779179609000,-210.54390342,0.00014212,2]
[422631623,1779179686000,171.09009577,0.00029688,120]
[422631624,1779179796000,-274.310326,0.00013881,2]
[422631625,1779179978000,156.13,7.625e-05,2]
[422631627,1779179978000,156.13,9.253e-05,2]
[422631628,1779179978000,156.13,0.00010067,2]
[422631626,1779179978000,156.13,8.439e-05,2]
[422631632,1779179979000,156.13,0.00013324,2]
[422631631,1779179979000,156.13,0.00012509,2]
[422631630,1779179979000,156.13,0.00011695,2]
[422631629,1779179979000,156.13,0.00010881,2]
[422631633,1779180374000,158.49,0.00011121,2]
[422631634,1779180512000,-166.84,0.00013699,2]
[422631640,1779180512000,-1000.0,0.00013834,2]
[422631635,1779180512000,-217.09093317,0.00013735,2]
[422631636,1779180512000,-150.0,0.00013784,2]
[422631637,1779180512000,-1000.0,0.00013834,2]
[422631638,1779180512000,-1000.0,0.00013834,2]
[422631645,1779180512000,-161.44,0.00013834,2]
[422631639,1779180512000,-1000.0,0.00013834,2]
[422631643,1779180512000,-1000.0,0.00013834,2]
[422631642,1779180512000,-1000.0,0.00013834,2]
[422631644,1779180512000,-1000.0,0.00013834,2]
[422631646,1779180512000,-1200.0,0.00013835,2]
[422631647,1779180512000,-104.62906683,0.00013836,2]
[422631641,1779180512000,-1000.0,0.00013834,2]
[422631650,1779180519000,-559.82906683,0.00013901,2]
[422631648,1779180519000,-95.37093317,0.00013836,2]
[422631649,1779180519000,-344.8,0.00013891,2]
[422631651,1779180541000,1000.0,0.00030135,120]
[422631652,1779180544000,150.1863,0.00030136,120]
[422631659,1779180631000,-425.23089184,0.00014,14]
[422631658,1779180631000,-560.48093317,0.00013901,2]
[422631676,1779180632000,-719.62920142,0.00014213,2]
[422631672,1779180632000,-495.745303,0.00014213,2]
[422631670,1779180632000,-165.0,0.00014213,2]
[422631675,1779180632000,-1694.71420145,0.00014213,2]
[422631673,1779180632000,-385.37598275,0.00014213,2]
[422631671,1779180632000,-598.5031,0.00014213,2]
[422631668,1779180632000,-165.0,0.00014213,2]
[422631662,1779180632000,-156.13,0.00014138,2]
[422631665,1779180632000,-150.0,0.00014212,2]
[422631666,1779180632000,-6218.40410453,0.00014212,2]
[422631664,1779180632000,-1040.0,0.00014211,2]
[422631663,1779180632000,-1200.0,0.00014211,2]
[422631661,1779180632000,-1038.63531885,0.00014,2]
[422631660,1779180632000,-250.0,0.00014,2]
[422631677,1779180632000,-127727.81609832,0.00014213,2]
[422631667,1779180632000,-297.70971045,0.00014212,2]
[422631679,1779180632000,-500.0,0.00014227,2]
[422631669,1779180632000,-165.0,0.00014213,2]
[422631678,1779180632000,-277744.76139881,0.00014213,2]
[422631703,1779180632000,-1254.41808677,0.00014313,2]
[422631701,1779180632000,-500.0,0.00014313,2]
[422631700,1779180632000,-500.0,0.00014313,2]
[422631688,1779180632000,-495.89656775,0.00014312,2]
[422631686,1779180632000,-500.0,0.00014312,2]
[422631702,1779180632000,-70645.86215196,0.00014313,2]
[422631690,1779180632000,-220.82135924,0.00014312,2]
[422631692,1779180632000,-510.83473575,0.00014313,2]
[422631674,1779180632000,-4118.87871425,0.00014213,2]
[422631682,1779180632000,-213.40008259,0.00014312,2]
[422631698,1779180632000,-500.0,0.00014313,2]
[422631694,1779180632000,-993.304,0.00014313,2]
[422631696,1779180632000,-500.0,0.00014313,2]
[422631683,1779180632000,-500.0,0.00014312,2]
[422631681,1779180632000,-500.0,0.00014312,2]
[422631680,1779180632000,-500.0,0.00014312,2]
[422631684,1779180632000,-207.44126792,0.00014312,2]
[422631706,1779180638000,-3056.86255459,0.00014313,2]
[422631705,1779180638000,-1405.95129109,0.00014313,2]
[422631708,1779180640000,-30093.99196174,0.00014313,2]
[422631709,1779180640000,-794.84235015,0.00014313,2]
[422631710,1779180640000,-14013.67119661,0.00014313,2]
[422631713,1779180643000,-4831.23849832,0.00014313,2]
[422631715,1779180646000,-305.22,0.00014313,2]
[422631716,1779180646000,-625.54012998,0.00014313,2]
[422631747,1779180734000,204.66,0.0003,120]
[422631746,1779180734000,307.0,0.000285,120]
[422631748,1779180787000,-452.020598,0.00014042,2]
[422631750,1779180831000,156.67,9.647e-05,2]
[422631749,1779180831000,156.67,8.613e-05,2]
[422631752,1779180832000,156.67,0.00011716,2]
[422631751,1779180832000,156.67,0.00010681,2]
[422631753,1779180832000,156.67,0.0001275,2]
[422631754,1779180930000,239.52613408,0.00029618,120]
[422631764,1779181506000,254.67783396,0.00013488,2]
[422631765,1779181513000,157.50595746,0.00013488,2]
[422631766,1779181515000,150.0,0.00013488,2]
[422631770,1779181531000,170.41262241,0.00013488,2]
[422631769,1779181531000,150.0,0.00013488,2]
[422631771,1779181540000,150.0,0.0001,2]
[422631773,1779181552000,82.22763128,0.00013543,2]
[422631772,1779181552000,84.43236872,0.00013543,2]
[422631775,1779181632000,152.86,7.23e-05,2]
[422631774,1779181632000,152.86,6.694e-05,2]
[422631776,1779181632000,152.86,7.766e-05,2]
[422631781,1779181633000,152.86,0.00010446,2]
[422631780,1779181633000,152.86,9.91e-05,2]
[422631779,1779181633000,152.86,9.374e-05,2]
[422631778,1779181633000,152.86,8.838e-05,2]
[422631777,1779181633000,152.86,8.302e-05,2]
[422631786,1779181634000,152.86,0.00013126,2]
[422631785,1779181634000,152.86,0.0001259,2]
[422631784,1779181634000,152.86,0.00012054,2]
[422631783,1779181634000,152.86,0.00011518,2]
[422631782,1779181634000,152.86,0.00010982,2]
[422631787,1779181669000,392.42,0.00013157,2]
[422631788,1779181688000,763.11,0.00013133,2]
[422631789,1779181711000,-150.0,0.00013581,2]
[422631791,1779181711000,-150.0,0.00013675,2]
[422631790,1779181711000,-242.77048307,0.00013628,2]
[422631792,1779181711000,-457.22951693,0.00013699,2]
[422631793,1779181740000,1000.0,0.00030135,120]
[422631797,1779181813000,163.88025622,0.00013557,2]
[422631798,1779181830000,150.0,0.000301,120]
[422631810,1779181832000,-1200.0,0.0001401,2]
[422631808,1779181832000,-150.0,0.00013956,2]
[422631809,1779181832000,-166.66,0.0001399,2]
[422631806,1779181832000,-150.0,0.00013862,2]
[422631807,1779181832000,-156.65,0.00013883,2]
[422631802,1779181832000,-809.83496852,0.00013699,2]
[422631803,1779181832000,-85.57503148,0.00013735,2]
[422631800,1779181832000,-869.70684013,0.00013699,2]
[422631804,1779181832000,-190.26496852,0.00013735,2]
[422631799,1779181832000,-20.18974378,0.00013557,2]
[422631801,1779181832000,-363.22867442,0.00013699,2]
[422631816,1779181832000,-181.64456622,0.00014011,2]
[422631805,1779181832000,-150.0,0.00013769,2]
[422631811,1779181832000,-1200.0,0.00014011,2]
[422631814,1779181832000,-137.97470667,0.00014011,2]
[422631813,1779181832000,-162.02529333,0.00014011,2]
[422631817,1779181832000,-500.0,0.00014011,2]
[422631829,1779181832000,-2566.60401429,0.00014012,2]
[422631826,1779181832000,-451280.22794355,0.00014012,2]
[422631827,1779181832000,-174842.22078804,0.00014012,2]
[422631825,1779181832000,-1237.08734021,0.00014012,2]
[422631824,1779181832000,-901.23418243,0.00014012,2]
[422631821,1779181832000,-154.57495147,0.00014011,2]
[422631823,1779181832000,-951.59844034,0.00014012,2]
[422631819,1779181832000,-500.0,0.00014011,2]
[422631820,1779181832000,-199.38005782,0.00014011,2]
[422631818,1779181832000,-503.16877238,0.00014011,2]
[422631815,1779181832000,-318.35543378,0.00014011,2]
[422631812,1779181832000,-293.0,0.00014011,2]
[422631828,1779181832000,-41442.62905602,0.00014012,2]
[422631822,1779181832000,-6023.63165211,0.00014012,2]
[422631891,1779181841000,-150.0,0.0001405,2]
[422631893,1779181841000,-628.71826054,0.00014112,2]
[422631888,1779181841000,-9807.09522078,0.00014035,2]
[422631889,1779181841000,-405.02167106,0.00014035,2]
[422631877,1779181841000,-500.0,0.00014011,2]
[422631886,1779181841000,-107454.79721643,0.00014012,2]
[422631878,1779181841000,-57.90806658,0.00014012,2]
[422631894,1779181841000,-500.0,0.00014113,2]
[422631887,1779181841000,-544113.9804,0.00014013,2]
[422631895,1779181841000,-500.0,0.00014113,2]
[422631896,1779181841000,-9807.09522076,0.00014131,2]
[422631892,1779181841000,-405.02167105,0.00014085,2]
[422631890,1779181841000,-794.643,0.00014048,2]
[422631905,1779181841000,-9807.09522076,0.00014227,2]
[422631903,1779181841000,-6609.27130867,0.0001422,2]
[422631904,1779181841000,-1256.68277943,0.00014225,2]
[422631900,1779181841000,-405.02167105,0.00014135,2]
[422631906,1779181841000,-160.0,0.00014228,2]
[422631901,1779181841000,-5000.0,0.00014135,2]
[422631899,1779181841000,-6609.27130869,0.00014135,2]
[422631898,1779181841000,-625.4583726,0.00014135,2]
[422631897,1779181841000,-150.0,0.00014134,2]
[422631902,1779181841000,-150.0,0.00014143,2]
[422631936,1779181842000,-150.0,0.00014502,2]
[422631951,1779181842000,-200.0,0.00014502,2]
[422631933,1779181842000,-150.0,0.00014502,2]
[422631934,1779181842000,-200.0,0.00014502,2]
[422631932,1779181842000,-150.0,0.00014502,2]
[422631937,1779181842000,-150.0,0.00014502,2]
[422631938,1779181842000,-150.0,0.00014502,2]
[422631935,1779181842000,-150.0,0.00014502,2]
[422631939,1779181842000,-500.0,0.00014502,2]
[422631940,1779181842000,-500.0,0.00014502,2]
[422631944,1779181842000,-500.0,0.00014502,2]
[422631942,1779181842000,-500.0,0.00014502,2]
[422631945,1779181842000,-500.0,0.00014502,2]
[422631946,1779181842000,-500.0,0.00014502,2]
[422631947,1779181842000,-351.0706614,0.00014502,2]
[422631943,1779181842000,-500.0,0.00014502,2]
[422631948,1779181842000,-181.11697857,0.00014502,2]
[422631949,1779181842000,-150.0,0.00014502,2]
[422631928,1779181842000,-9807.09522076,0.00014419,2]
[422631941,1779181842000,-500.0,0.00014502,2]
[422631931,1779181842000,-6609.27130867,0.00014475,2]
[422631908,1779181842000,-500.0,0.00014234,2]
[422631929,1779181842000,-150.0,0.00014424,2]
[422631956,1779181842000,-319.23106836,0.00014566,2]
[422631907,1779181842000,-319.23106836,0.00014231,2]
[422631909,1779181842000,-500.0,0.00014234,2]
[422631910,1779181842000,-500.0,0.00014234,2]
[422631911,1779181842000,-500.0,0.00014234,2]
[422631912,1779181842000,-595.59143978,0.00014234,2]
[422631913,1779181842000,-776.2306743,0.00014235,2]
[422631914,1779181842000,-610137.9193802,0.00014235,2]
[422631915,1779181842000,-5109.9981481,0.00014235,2]
[422631930,1779181842000,-166.66,0.00014437,2]
[422631916,1779181842000,-15474.2086219,0.00014235,2]
[422631921,1779181842000,-6609.27130867,0.00014305,2]
[422631924,1779181842000,-9807.09522076,0.00014323,2]
[422631925,1779181842000,-150.0,0.00014331,2]
[422631920,1779181842000,-1521.14,0.00014263,2]
[422631923,1779181842000,-151.0,0.00014313,2]
[422631919,1779181842000,-150.0,0.00014237,2]
[422631922,1779181842000,-629.80079628,0.00014313,2]
[422631918,1779181842000,-150.0,0.00014237,2]
[422631927,1779181842000,-500.0,0.00014411,2]
[422631917,1779181842000,-6065.7960449,0.00014235,2]
[422631955,1779181842000,-6609.27130867,0.0001456,2]
[422631926,1779181842000,-6609.27130867,0.0001439,2]
[422631954,1779181842000,-150.0,0.00014518,2]
[422632009,1779181842000,-8633.0,0.00014986,2]
[422631995,1779181842000,-6609.27130867,0.000149,2]
[422631994,1779181842000,-3327.03719997,0.000149,2]
[422632005,1779181842000,-153.99235667,0.00014986,2]
[422632011,1779181842000,-1256.68277943,0.0001499,2]
[422631997,1779181842000,-319.23106836,0.000149,2]
[422632003,1779181842000,-250.0,0.00014939,2]
[422631999,1779181842000,-10503.45168562,0.000149,2]
[422632001,1779181842000,-290.93114458,0.00014908,2]
[422632007,1779181842000,-229.00156449,0.00014986,2]
[422632013,1779181842000,-1256.68277943,0.0001499,2]
[422632018,1779181842000,-666.0,0.00014999,2]
[422632020,1779181842000,-300.0,0.00014999,2]
[422632022,1779181842000,-300.0,0.00014999,2]
[422632024,1779181842000,-692.46000937,0.00014999,2]
[422632030,1779181842000,-11929607.87701606,0.00015,2]
[422632034,1779181842000,-1446841.64401879,0.00015,2]
[422632026,1779181842000,-300.0,0.00014999,2]
[422632032,1779181842000,-228.82,0.00015,2]
[422632028,1779181842000,-1521.14,0.00015,2]
[422632016,1779181842000,-300.0,0.00014999,2]
[422631992,1779181842000,-12306.3081675,0.000149,2]
[422631990,1779181842000,-25000.0,0.000149,3]
[422631983,1779181842000,-5676.58636403,0.000149,3]
[422631950,1779181842000,-150.0,0.00014502,2]
[422631957,1779181842000,-150.0,0.00014612,2]
[422631958,1779181842000,-9807.09522076,0.00014612,2]
[422631953,1779181842000,-9807.09522076,0.00014516,2]
[422631959,1779181842000,-6609.27130867,0.00014645,2]
[422631961,1779181842000,-9807.09522076,0.00014708,2]
[422631962,1779181842000,-176.6,0.00014713,2]
[422631963,1779181842000,-6609.27130867,0.0001473,2]
[422631960,1779181842000,-150.0,0.00014705,2]
[422631964,1779181842000,-12306.3081675,0.00014776,2]
[422631966,1779181842000,-150.0,0.00014799,2]
[422631969,1779181842000,-6609.27130867,0.00014815,2]
[422631965,1779181842000,-500.0,0.00014795,2]
[422631967,1779181842000,-9807.09522076,0.00014804,2]
[422631971,1779181842000,-25000.0,0.00014874,3]
[422631973,1779181842000,-25000.0,0.00014882,3]
[422631976,1779181842000,-166.66,0.00014884,2]
[422631978,1779181842000,-25000.0,0.00014891,3]
[422631985,1779181842000,-9807.09522076,0.000149,2]
[422631979,1779181842000,-150.0,0.00014893,2]
[422631981,1779181842000,-358.21537776,0.000149,2]
[422631952,1779181842000,-150.0,0.00014502,2]
[422632053,1779181843000,-546.31999576,0.00015,2]
[422632054,1779181843000,-3099.69351359,0.00015,2]
[422632055,1779181843000,-805.66,0.00015,2]
[422632057,1779181844000,-7841.41604242,0.00015,2]
[422632058,1779181844000,-577.15,0.00015,2]
[422632059,1779181844000,-4609.70197513,0.00015,2]
[422632056,1779181844000,-796.18494401,0.00015,2]
[422632073,1779181846000,-1148.9113853,0.00015,2]
[422632072,1779181846000,-2931.71123841,0.00015,2]
[422632079,1779181931000,5185.5,0.0003,120]
[422632084,1779182162000,-1557.65940052,0.00013593,2]
[422632086,1779182349000,-210.54390342,0.00013493,2]
[422632088,1779182536000,-726.330924,0.00013142,2]
[422632090,1779182637000,374.27,6.577e-05,2]
[422632091,1779182638000,374.27,6.909e-05,2]
[422632092,1779182638000,374.27,7.242e-05,2]
[422632094,1779182638000,374.27,7.907e-05,2]
[422632093,1779182638000,374.27,7.574e-05,2]
[422632095,1779182638000,374.27,8.239e-05,2]
[422632100,1779182639000,374.27,9.902e-05,2]
[422632099,1779182639000,374.27,9.569e-05,2]
[422632098,1779182639000,374.27,9.237e-05,2]
[422632097,1779182639000,374.27,8.904e-05,2]
[422632096,1779182639000,374.27,8.572e-05,2]
[422632103,1779182822000,-374.27,0.00010235,2]
[422632105,1779182940000,1000.0,0.00030134,120]
[422632106,1779183002000,3258.9,0.0001,2]
[422632107,1779183033000,-374.27,0.00010567,2]
[422632126,1779183033000,-56.67134257,0.00011,2]
[422632124,1779183033000,-263.63217042,0.00011,2]
[422632125,1779183033000,-943.32865743,0.00011,2]
[422632123,1779183033000,-736.36782958,0.00011,2]
[422632122,1779183033000,-1000.0,0.00011,2]
[422632119,1779183033000,-150.0,0.00010999,2]
[422632120,1779183033000,-1000.0,0.00011,2]
[422632121,1779183033000,-1000.0,0.00011,2]
[422632118,1779183033000,-195.607671,0.00010999,2]
[422632115,1779183033000,-544.24406512,0.00010999,2]
[422632117,1779183033000,-104.392329,0.00010999,2]
[422632128,1779183033000,-1000.0,0.00011,2]
[422632113,1779183033000,-150.0,0.00010989,2]
[422632108,1779183033000,-150.0,0.00010672,2]
[422632109,1779183033000,-150.0,0.00010777,2]
[422632110,1779183033000,-150.0,0.00010883,2]
[422632111,1779183033000,-217.09093317,0.00010899,2]
[422632112,1779183033000,-374.27,0.000109,2]
[422632116,1779183033000,-646.35106662,0.00010999,2]
[422632127,1779183033000,-1000.0,0.00011,2]
[422632114,1779183033000,-9.40486826,0.00010999,2]
[422632130,1779183033000,-644.55611662,0.00011,2]
[422632156,1779183033000,-150.0,0.00012246,2]
[422632157,1779183033000,-1200.0,0.0001234,2]
[422632158,1779183033000,-2458.34,0.00012342,2]
[422632155,1779183033000,-374.27,0.0001223,2]
[422632154,1779183033000,-154.29,0.00012118,2]
[422632150,1779183033000,-374.27,0.00011897,2]
[422632153,1779183033000,-1680.0,0.00012099,2]
[422632145,1779183033000,-374.27,0.00011565,2]
[422632151,1779183033000,-255.0,0.00012044,2]
[422632148,1779183033000,-347.07799318,0.00011624,2]
[422632129,1779183033000,-355.44388338,0.00011,2]
[422632136,1779183033000,-257.0,0.000112,2]
[422632139,1779183033000,-4435.41739322,0.000113,2]
[422632132,1779183033000,-301.48251273,0.00011,2]
[422632131,1779183033000,-95.27630519,0.00011,2]
[422632133,1779183033000,-603.24118208,0.00011,2]
[422632134,1779183033000,-61.21023977,0.00011094,2]
[422632138,1779183033000,-250.0,0.00011258,2]
[422632135,1779183033000,-88.78976023,0.00011094,2]
[422632141,1779183033000,-250.0,0.00011442,2]
[422632143,1779183033000,-250.0,0.00011442,2]
[422632137,1779183033000,-374.27,0.00011232,2]
[422632185,1779183034000,-200.0,0.00013699,2]
[422632183,1779183034000,-166.66,0.00013605,2]
[422632181,1779183034000,-491.79,0.00013593,2]
[422632182,1779183034000,-160.54782398,0.000136,2]
[422632184,1779183034000,-167.15,0.00013699,2]
[422632186,1779183034000,-7264.1,0.00013699,2]
[422632187,1779183034000,-500.0,0.00013699,2]
[422632188,1779183034000,-420663.4951,0.00013955,2]
[422632193,1779183034000,-1000.0,0.00014054,2]
[422632190,1779183034000,-502.0383,0.00014025,2]
[422632191,1779183034000,-14172.3622,0.00014025,2]
[422632192,1779183034000,-167.15,0.00014041,2]
[422632179,1779183034000,-1294.64297778,0.00013593,2]
[422632197,1779183034000,-6665.48781735,0.00014168,2]
[422632194,1779183034000,-2174.08697944,0.00014076,2]
[422632195,1779183034000,-3038.7241,0.00014168,2]
[422632196,1779183034000,-772.0289,0.00014168,2]
[422632189,1779183034000,-250.0,0.00014,2]
[422632180,1779183034000,-5942.7960376,0.00013593,2]
[422632177,1779183034000,-2458.34,0.00013576,2]
[422632173,1779183034000,-2458.34,0.00013268,2]
[422632159,1779183034000,-200.0,0.00012347,2]
[422632160,1779183034000,-163.43,0.00012562,2]
[422632162,1779183034000,-2458.34,0.00012651,2]
[422632163,1779183034000,-156.65,0.00012661,2]
[422632164,1779183034000,-175.36,0.00012715,2]
[422632161,1779183034000,-374.27,0.00012562,2]
[422632165,1779183034000,-349.19976428,0.00012823,2]
[422632168,1779183034000,-3089.79056528,0.00013073,2]
[422632166,1779183034000,-374.27,0.00012895,2]
[422632198,1779183034000,-405.02167106,0.00014168,2]
[422632171,1779183034000,-433.0,0.00013188,2]
[422632170,1779183034000,-620.68,0.00013081,2]
[422632169,1779183034000,-381.55,0.00013074,2]
[422632172,1779183034000,-500.0,0.00013209,2]
[422632175,1779183034000,-652.30709524,0.00013528,2]
[422632176,1779183034000,-1680.0,0.00013542,2]
[422632174,1779183034000,-2351.0,0.00013309,2]
[422632178,1779183034000,-5842.7015841,0.00013593,2]
[422632167,1779183034000,-2458.34,0.00012959,2]
[422632203,1779183034000,-339.56604047,0.00014227,2]
[422632202,1779183034000,-292.21814067,0.00014227,2]